[Event "*** SCC Grand Prix: Titled Tuesday Blitz"]
[Site "Chess.com"]
[Date "2020.09.08"]
[Round "4"]
[White "PavelChernomordik"]
[Black "iLuusions"]
[Result "0-1"]
[WhiteElo "2344"]
[BlackElo "2571"]
[TimeControl "180+1"]
[EndTime "10:40:28 PDT"]
[Termination "iLuusions won on time"]

1. e4 {[%clk 0:02:58.3]} 1... c5 {[%clk 0:02:55.8]} 2. Nc3 {[%clk 0:02:55.8]}
2... d6 {[%clk 0:02:55.9]} 3. f4 {[%clk 0:02:54.3]} 3... a6 {[%clk 0:02:55.4]}
4. Nf3 {[%clk 0:02:53.6]} 4... Nf6 {[%clk 0:02:55.6]} 5. g3 {[%clk 0:02:52.4]}
5... e6 {[%clk 0:02:54.6]} 6. Bg2 {[%clk 0:02:52.1]} 6... Be7 {[%clk 0:02:55]}
7. O-O {[%clk 0:02:51.4]} 7... Nc6 {[%clk 0:02:50.6]} 8. d3 {[%clk 0:02:51.7]}
8... O-O {[%clk 0:02:47.2]} 9. Qe2 {[%clk 0:02:47.3]} 9... Qc7 {[%clk
0:02:46.6]} 10. h3 {[%clk 0:02:41.8]} 10... b5 {[%clk 0:02:45.6]} 11. g4 {[%clk
0:02:37.1]} 11... Bb7 {[%clk 0:02:44.5]} 12. Be3 {[%clk 0:02:28.1]} 12... b4
{[%clk 0:02:31]} 13. Nd1 {[%clk 0:02:23.6]} 13... a5 {[%clk 0:02:15.8]} 14. Nf2
{[%clk 0:02:21.7]} 14... a4 {[%clk 0:02:04.4]} 15. f5 {[%clk 0:02:19.5]} 15...
d5 {[%clk 0:02:00.9]} 16. Rae1 {[%clk 0:01:55.3]} 16... d4 {[%clk 0:02:00.3]}
17. Bc1 {[%clk 0:01:52.8]} 17... e5 {[%clk 0:01:56.2]} 18. Nd2 {[%clk
0:01:44.3]} 18... Nd7 {[%clk 0:01:50.5]} 19. Nf3 {[%clk 0:01:35.4]} 19... b3
{[%clk 0:01:26.7]} 20. cxb3 {[%clk 0:01:30.6]} 20... axb3 {[%clk 0:01:27.6]} 21.
a3 {[%clk 0:01:29.4]} 21... Ba6 {[%clk 0:01:17.6]} 22. g5 {[%clk 0:01:27.2]}
22... c4 {[%clk 0:01:16.2]} 23. f6 {[%clk 0:01:21.4]} 23... cxd3 {[%clk
0:01:11.6]} 24. Qd2 {[%clk 0:01:14.6]} 24... gxf6 {[%clk 0:01:10.2]} 25. gxf6
{[%clk 0:01:10.5]} 25... Bxf6 {[%clk 0:01:11.1]} 26. Qh6 {[%clk 0:01:07.9]}
26... Bg7 {[%clk 0:01:10.6]} 27. Qh5 {[%clk 0:01:06.9]} 27... Nf6 {[%clk
0:01:08.9]} 28. Qh4 {[%clk 0:01:04.5]} 28... Ne7 {[%clk 0:01:08.5]} 29. Ng4
{[%clk 0:00:58]} 29... Nxg4 {[%clk 0:01:01.3]} 30. Qxg4 {[%clk 0:00:57.2]} 30...
Ng6 {[%clk 0:01:00.7]} 31. h4 {[%clk 0:00:50.4]} 31... d2 {[%clk 0:00:59.8]} 32.
Bxd2 {[%clk 0:00:47.9]} 32... Bxf1 {[%clk 0:01:00]} 33. Rxf1 {[%clk 0:00:46.2]}
33... Nf4 {[%clk 0:00:55.7]} 34. h5 {[%clk 0:00:36]} 34... Nxg2 {[%clk
0:00:55.1]} 35. h6 {[%clk 0:00:30.8]} 35... f5 {[%clk 0:00:53.5]} 36. exf5
{[%clk 0:00:29.8]} 36... Nf4 {[%clk 0:00:44.7]} 37. hxg7 {[%clk 0:00:26.7]}
37... Qxg7 {[%clk 0:00:43.2]} 38. Qxg7+ {[%clk 0:00:24.6]} 38... Kxg7 {[%clk
0:00:44.1]} 39. Nxe5 {[%clk 0:00:24.1]} 39... Ne2+ {[%clk 0:00:33.2]} 40. Kg2
{[%clk 0:00:22.7]} 40... Rae8 {[%clk 0:00:31]} 41. Nd7 {[%clk 0:00:19.4]} 41...
Rf7 {[%clk 0:00:24.1]} 42. Nc5 {[%clk 0:00:17.6]} 42... Re5 {[%clk 0:00:21]} 43.
Ne6+ {[%clk 0:00:15.5]} 43... Kg8 {[%clk 0:00:16.7]} 44. Ng5 {[%clk 0:00:07.4]}
44... Rfxf5 {[%clk 0:00:15.1]} 45. Nf3 {[%clk 0:00:04.6]} 45... Re6 {[%clk
0:00:12.5]} 46. Kf2 {[%clk 0:00:01.4]} 46... d3 {[%clk 0:00:09.3]} 0-1

[Event "*** SCC Grand Prix: Titled Tuesday Blitz"]
[Site "Chess.com"]
[Date "2020.09.08"]
[Round "4"]
[White "Morshynska"]
[Black "Chessmatus"]
[Result "0-1"]
[WhiteElo "2168"]
[BlackElo "2396"]
[TimeControl "180+1"]
[EndTime "10:40:28 PDT"]
[Termination "Chessmatus won on time"]

1. e4 {[%clk 0:03:00.9]} 1... c5 {[%clk 0:02:53.9]} 2. Nf3 {[%clk 0:03:00.6]}
2... d6 {[%clk 0:02:54.1]} 3. Bb5+ {[%clk 0:02:59.9]} 3... Nd7 {[%clk
0:02:53.1]} 4. d4 {[%clk 0:02:54.2]} 4... cxd4 {[%clk 0:02:54]} 5. Qxd4 {[%clk
0:02:54.4]} 5... a6 {[%clk 0:02:54]} 6. Bxd7+ {[%clk 0:02:54.3]} 6... Bxd7
{[%clk 0:02:54.9]} 7. c4 {[%clk 0:02:54.9]} 7... Nf6 {[%clk 0:02:41]} 8. Nc3
{[%clk 0:02:53.8]} 8... e6 {[%clk 0:02:40.9]} 9. e5 {[%clk 0:02:43]} 9... dxe5
{[%clk 0:02:37.6]} 10. Nxe5 {[%clk 0:02:43.9]} 10... Rc8 {[%clk 0:02:35.5]} 11.
Nxd7 {[%clk 0:02:30.8]} 11... Qxd7 {[%clk 0:02:34.6]} 12. Qh4 {[%clk 0:01:37.6]}
12... Qc6 {[%clk 0:02:33.6]} 13. O-O {[%clk 0:01:36.5]} 13... Qxc4 {[%clk
0:02:32.7]} 14. Qg3 {[%clk 0:01:33.2]} 14... Be7 {[%clk 0:02:22.5]} 15. Qxg7
{[%clk 0:01:13]} 15... Rg8 {[%clk 0:02:21.2]} 16. Qh6 {[%clk 0:01:12.9]} 16...
Qg4 {[%clk 0:02:20.5]} 17. g3 {[%clk 0:01:09.8]} 17... Rg6 {[%clk 0:02:17.6]}
18. Qf4 {[%clk 0:00:57.8]} 18... Qh3 {[%clk 0:02:17.5]} 19. Qf3 {[%clk 0:00:55]}
19... h5 {[%clk 0:01:38.1]} 20. Qg2 {[%clk 0:00:45.4]} 20... Qxg2+ {[%clk
0:01:35.9]} 21. Kxg2 {[%clk 0:00:46.3]} 21... h4 {[%clk 0:01:33.5]} 22. Bf4
{[%clk 0:00:39.3]} 22... Nh5 {[%clk 0:01:24.3]} 23. Be3 {[%clk 0:00:30]} 23...
f5 {[%clk 0:01:24.3]} 24. Kf3 {[%clk 0:00:28.5]} 24... h3 {[%clk 0:01:13.1]} 25.
Rac1 {[%clk 0:00:27.3]} 25... Nf6 {[%clk 0:01:03.5]} 26. Rh1 {[%clk 0:00:17.9]}
26... Ng4 {[%clk 0:01:02.2]} 27. Ke2 {[%clk 0:00:17.5]} 27... Rc6 {[%clk
0:00:51.6]} 28. Ba7 {[%clk 0:00:16.1]} 28... b6 {[%clk 0:00:45.6]} 29. f3 {[%clk
0:00:15.3]} 29... Ne5 {[%clk 0:00:43.1]} 30. Bb8 {[%clk 0:00:13.6]} 30... Nd7
{[%clk 0:00:42.7]} 31. Bf4 {[%clk 0:00:13.1]} 31... e5 {[%clk 0:00:27.3]} 32.
Be3 {[%clk 0:00:13.4]} 32... Rgd6 {[%clk 0:00:27.2]} 33. Rhd1 {[%clk 0:00:12.4]}
33... Nf6 {[%clk 0:00:26.7]} 34. Rxd6 {[%clk 0:00:10.3]} 34... Rxd6 {[%clk
0:00:24.7]} 35. Bg5 {[%clk 0:00:10.1]} 35... Kf7 {[%clk 0:00:21.2]} 36. Bxf6
{[%clk 0:00:10]} 36... Kxf6 {[%clk 0:00:21.4]} 37. g4 {[%clk 0:00:09.8]} 37...
Bf8 {[%clk 0:00:18.6]} 38. gxf5 {[%clk 0:00:08.2]} 38... Kxf5 {[%clk 0:00:17.3]}
39. Ne4 {[%clk 0:00:08.8]} 39... Rg6 {[%clk 0:00:16.4]} 40. Kd3 {[%clk
0:00:07.2]} 40... Rg2 {[%clk 0:00:15.9]} 41. Rc6 {[%clk 0:00:03.4]} 41... Bg7
{[%clk 0:00:16.1]} 42. Rc7 {[%clk 0:00:02.9]} 42... Kg6 {[%clk 0:00:12.5]} 43.
Rc6+ {[%clk 0:00:02.7]} 43... Kh7 {[%clk 0:00:12.7]} 44. Rxb6 {[%clk 0:00:01.5]}
44... Kg8 {[%clk 0:00:03]} 0-1

[Event "*** SCC Grand Prix: Titled Tuesday Blitz"]
[Site "Chess.com"]
[Date "2020.09.08"]
[Round "4"]
[White "ItsCheckM8Mate"]
[Black "Euge_chess"]
[Result "1-0"]
[WhiteElo "2323"]
[BlackElo "2104"]
[TimeControl "180+1"]
[EndTime "10:40:28 PDT"]
[Termination "ItsCheckM8Mate won on time"]

1. e4 {[%clk 0:03:00.9]} 1... e5 {[%clk 0:02:59.3]} 2. Nf3 {[%clk 0:03:00]} 2...
Nc6 {[%clk 0:02:59.6]} 3. Bb5 {[%clk 0:02:58.9]} 3... Nf6 {[%clk 0:02:59.9]} 4.
d3 {[%clk 0:02:58.2]} 4... Bc5 {[%clk 0:02:57.1]} 5. O-O {[%clk 0:02:57.8]} 5...
d6 {[%clk 0:02:52.9]} 6. c3 {[%clk 0:02:55.9]} 6... O-O {[%clk 0:02:52.1]} 7.
Nbd2 {[%clk 0:02:49.8]} 7... Bg4 {[%clk 0:02:45]} 8. Re1 {[%clk 0:02:47.1]} 8...
Ne7 {[%clk 0:02:33.7]} 9. Nf1 {[%clk 0:02:44.8]} 9... c6 {[%clk 0:02:31.8]} 10.
Ba4 {[%clk 0:02:43.9]} 10... b5 {[%clk 0:02:29.4]} 11. Bc2 {[%clk 0:02:42.8]}
11... Qc7 {[%clk 0:02:07]} 12. Ng3 {[%clk 0:02:41.5]} 12... d5 {[%clk
0:01:55.9]} 13. h3 {[%clk 0:02:39.5]} 13... Bxf3 {[%clk 0:01:53]} 14. Qxf3
{[%clk 0:02:38.9]} 14... dxe4 {[%clk 0:01:47.9]} 15. Nxe4 {[%clk 0:02:34.9]}
15... Nxe4 {[%clk 0:01:46.5]} 16. Qxe4 {[%clk 0:02:34.6]} 16... Ng6 {[%clk
0:01:45.9]} 17. Bb3 {[%clk 0:02:23.7]} 17... Kh8 {[%clk 0:01:42.3]} 18. d4
{[%clk 0:01:59.7]} 18... exd4 {[%clk 0:01:37.8]} 19. cxd4 {[%clk 0:01:58]} 19...
Bb6 {[%clk 0:01:34.2]} 20. Bg5 {[%clk 0:01:39.5]} 20... f6 {[%clk 0:01:29.3]}
21. Be3 {[%clk 0:01:13.4]} 21... Rad8 {[%clk 0:01:16.7]} 22. Rac1 {[%clk
0:01:11.8]} 22... Rd6 {[%clk 0:00:59.7]} 23. Red1 {[%clk 0:00:51.8]} 23... Rfd8
{[%clk 0:00:55.1]} 24. h4 {[%clk 0:00:50]} 24... Qe7 {[%clk 0:00:51.1]} 25. Qg4
{[%clk 0:00:41.5]} 25... Qd7 {[%clk 0:00:45]} 26. Qxd7 {[%clk 0:00:29]} 26...
R8xd7 {[%clk 0:00:43.5]} 27. h5 {[%clk 0:00:29.9]} 27... Ne7 {[%clk 0:00:41.5]}
28. Re1 {[%clk 0:00:19.1]} 28... Nd5 {[%clk 0:00:32.8]} 29. Bxd5 {[%clk
0:00:17.1]} 29... Rxd5 {[%clk 0:00:23.2]} 30. Rxc6 {[%clk 0:00:16.7]} 30... Rxh5
{[%clk 0:00:13.9]} 31. d5 {[%clk 0:00:11.8]} 31... h6 {[%clk 0:00:10.6]} 32.
Bxb6 {[%clk 0:00:10.4]} 32... axb6 {[%clk 0:00:10.5]} 33. d6 {[%clk 0:00:08.8]}
33... Rd5 {[%clk 0:00:09.6]} 34. Re6 {[%clk 0:00:07.7]} 34... Rd1+ {[%clk
0:00:07.3]} 35. Kh2 {[%clk 0:00:07.4]} 35... Rd2 {[%clk 0:00:06.3]} 36. Rxb6
{[%clk 0:00:05.9]} 36... Rxf2 {[%clk 0:00:03.9]} 37. Re7 {[%clk 0:00:05.7]}
37... Rd8 {[%clk 0:00:03.6]} 38. Rxb5 {[%clk 0:00:04.5]} 38... Rd2 {[%clk
0:00:03.4]} 39. Rbb7 {[%clk 0:00:04.3]} 39... R2xd6 {[%clk 0:00:02.9]} 40. Rxg7
{[%clk 0:00:04.3]} 40... Rd2 {[%clk 0:00:02.2]} 41. a4 {[%clk 0:00:03.6]} 1-0

[Event "*** SCC Grand Prix: Titled Tuesday Blitz"]
[Site "Chess.com"]
[Date "2020.09.08"]
[Round "4"]
[White "jamik13"]
[Black "laboratorio25"]
[Result "0-1"]
[WhiteElo "2198"]
[BlackElo "2403"]
[TimeControl "180+1"]
[EndTime "10:40:29 PDT"]
[Termination "laboratorio25 won on time"]

1. d4 {[%clk 0:02:59.4]} 1... d5 {[%clk 0:02:59.8]} 2. Nc3 {[%clk 0:02:59.3]}
2... Nf6 {[%clk 0:02:59]} 3. Bf4 {[%clk 0:02:59.2]} 3... c6 {[%clk 0:02:53]} 4.
e3 {[%clk 0:02:58.6]} 4... Bf5 {[%clk 0:02:52]} 5. f3 {[%clk 0:02:58.3]} 5... e6
{[%clk 0:02:51.6]} 6. g4 {[%clk 0:02:57.8]} 6... Bg6 {[%clk 0:02:51.4]} 7. h4
{[%clk 0:02:58.3]} 7... h5 {[%clk 0:02:49.2]} 8. g5 {[%clk 0:02:58.1]} 8... Nfd7
{[%clk 0:02:48.8]} 9. Bd3 {[%clk 0:02:58.7]} 9... Bxd3 {[%clk 0:02:47.7]} 10.
Qxd3 {[%clk 0:02:58.3]} 10... g6 {[%clk 0:02:46.7]} 11. Nge2 {[%clk 0:02:56.5]}
11... Bg7 {[%clk 0:02:46.3]} 12. O-O-O {[%clk 0:02:53.7]} 12... O-O {[%clk
0:02:42.3]} 13. e4 {[%clk 0:02:51.6]} 13... b5 {[%clk 0:02:36.6]} 14. Bd6 {[%clk
0:02:49]} 14... Re8 {[%clk 0:02:35.9]} 15. e5 {[%clk 0:02:47.8]} 15... a5 {[%clk
0:02:32.9]} 16. Nf4 {[%clk 0:02:42.5]} 16... Nf8 {[%clk 0:02:27.2]} 17. Nce2
{[%clk 0:02:38.1]} 17... Nbd7 {[%clk 0:02:25.4]} 18. Ng3 {[%clk 0:02:26.4]}
18... c5 {[%clk 0:02:21.9]} 19. c3 {[%clk 0:02:21.6]} 19... b4 {[%clk
0:02:20.7]} 20. Kd2 {[%clk 0:02:16.8]} 20... bxc3+ {[%clk 0:02:16]} 21. bxc3
{[%clk 0:02:16.5]} 21... cxd4 {[%clk 0:02:16.3]} 22. cxd4 {[%clk 0:02:15.7]}
22... Nb6 {[%clk 0:02:15.9]} 23. Ke2 {[%clk 0:02:13.4]} 23... Nc4 {[%clk
0:02:14.5]} 24. Bc5 {[%clk 0:02:09.1]} 24... Qc7 {[%clk 0:02:04.5]} 25. Rc1
{[%clk 0:01:59.4]} 25... Bxe5 {[%clk 0:01:41.1]} 26. dxe5 {[%clk 0:01:36.6]}
26... Qxc5 {[%clk 0:01:40.4]} 27. Ngxh5 {[%clk 0:01:30.6]} 27... gxh5 {[%clk
0:01:35.3]} 28. Nxh5 {[%clk 0:01:29.9]} 28... Qa3 {[%clk 0:01:22.7]} 29. Nf6+
{[%clk 0:01:25]} 29... Kh8 {[%clk 0:01:21.8]} 30. Qxa3 {[%clk 0:01:11.1]} 30...
Nxa3 {[%clk 0:01:21.5]} 31. Nxe8 {[%clk 0:01:11]} 31... Rxe8 {[%clk 0:01:21.8]}
32. Rc7 {[%clk 0:01:10.8]} 32... Ng6 {[%clk 0:01:19.8]} 33. Rxf7 {[%clk
0:01:05.8]} 33... Nxe5 {[%clk 0:01:16.5]} 34. Ra7 {[%clk 0:01:05.5]} 34... Nac4
{[%clk 0:01:15.5]} 35. f4 {[%clk 0:01:04.2]} 35... Ng6 {[%clk 0:01:00.3]} 36.
Rf7 {[%clk 0:01:02.8]} 36... Kg8 {[%clk 0:00:57.7]} 37. Rf6 {[%clk 0:01:01.8]}
37... Nf8 {[%clk 0:00:49.7]} 38. h5 {[%clk 0:00:59.6]} 38... Nd6 {[%clk
0:00:45.8]} 39. h6 {[%clk 0:00:45.4]} 39... Nf5 {[%clk 0:00:43.2]} 40. g6 {[%clk
0:00:41]} 40... Ng3+ {[%clk 0:00:30.2]} 41. Kf3 {[%clk 0:00:39.4]} 41... Nxh1
{[%clk 0:00:30]} 42. h7+ {[%clk 0:00:31.5]} 42... Kh8 {[%clk 0:00:27.8]} 43. Kg2
{[%clk 0:00:24.2]} 43... d4 {[%clk 0:00:23.5]} 44. Kxh1 {[%clk 0:00:18.3]} 44...
d3 {[%clk 0:00:23.6]} 45. Rf7 {[%clk 0:00:18.4]} 45... Nxg6 {[%clk 0:00:18.8]}
46. Rd7 {[%clk 0:00:16.5]} 46... Nxf4 {[%clk 0:00:18.9]} 47. Kh2 {[%clk
0:00:14.9]} 47... Nd5 {[%clk 0:00:17.6]} 48. Rf7 {[%clk 0:00:11.5]} 48... d2
{[%clk 0:00:16.8]} 49. Rf1 {[%clk 0:00:10.6]} 49... Ne3 {[%clk 0:00:16.9]} 0-1

[Event "*** SCC Grand Prix: Titled Tuesday Blitz"]
[Site "Chess.com"]
[Date "2020.09.08"]
[Round "4"]
[White "NotFischer"]
[Black "AsaHoffmann"]
[Result "1-0"]
[WhiteElo "2237"]
[BlackElo "2394"]
[TimeControl "180+1"]
[EndTime "10:40:31 PDT"]
[Termination "NotFischer won by resignation"]

1. e4 {[%clk 0:03:00.8]} 1... d6 {[%clk 0:02:59.2]} 2. d4 {[%clk 0:03:00.6]}
2... Nf6 {[%clk 0:02:56]} 3. Nc3 {[%clk 0:03:00.4]} 3... c6 {[%clk 0:02:55.6]}
4. Nf3 {[%clk 0:02:59.2]} 4... Bg4 {[%clk 0:02:54.5]} 5. h3 {[%clk 0:02:57.9]}
5... Bh5 {[%clk 0:02:54]} 6. Be3 {[%clk 0:02:53.1]} 6... e6 {[%clk 0:02:53.6]}
7. g4 {[%clk 0:02:51.6]} 7... Bg6 {[%clk 0:02:53.2]} 8. Nd2 {[%clk 0:02:46.6]}
8... d5 {[%clk 0:02:52.4]} 9. e5 {[%clk 0:02:42.3]} 9... Nfd7 {[%clk 0:02:52]}
10. Bg2 {[%clk 0:02:42]} 10... c5 {[%clk 0:02:49.8]} 11. f4 {[%clk 0:02:40.4]}
11... cxd4 {[%clk 0:02:48.8]} 12. Bxd4 {[%clk 0:02:41.3]} 12... Nc6 {[%clk
0:02:48.5]} 13. Nf3 {[%clk 0:02:37.1]} 13... Nxd4 {[%clk 0:02:42.6]} 14. Qxd4
{[%clk 0:02:35.5]} 14... Bc5 {[%clk 0:02:41.6]} 15. Qd2 {[%clk 0:02:35.2]} 15...
a6 {[%clk 0:02:39.8]} 16. a3 {[%clk 0:02:29.6]} 16... Qa5 {[%clk 0:02:23.6]} 17.
O-O-O {[%clk 0:02:17.6]} 17... Bxa3 {[%clk 0:02:20.9]} 18. Nxd5 {[%clk
0:02:17.2]} 18... Bxb2+ {[%clk 0:01:36.8]} 19. Kxb2 {[%clk 0:02:15.9]} 19...
Qb5+ {[%clk 0:01:25]} 20. Qb4 {[%clk 0:02:02.1]} 20... exd5 {[%clk 0:01:18.9]}
21. Qxb5 {[%clk 0:02:01.9]} 21... axb5 {[%clk 0:01:17.4]} 22. f5 {[%clk
0:02:02.3]} 22... Nb6 {[%clk 0:01:16.2]} 23. Ra1 {[%clk 0:01:23.8]} 23... Nc4+
{[%clk 0:01:11.7]} 24. Kb1 {[%clk 0:01:18.3]} 24... Rc8 {[%clk 0:01:04.7]} 25.
fxg6 {[%clk 0:01:11.2]} 25... hxg6 {[%clk 0:01:04.1]} 26. Rd1 {[%clk 0:01:08.9]}
26... Ne3 {[%clk 0:01:00.1]} 27. Rd2 {[%clk 0:01:08.2]} 27... O-O {[%clk
0:00:56]} 28. Ra7 {[%clk 0:01:01.4]} 28... Rc3 {[%clk 0:00:54.6]} 29. Nd4 {[%clk
0:00:55.7]} 29... Rc4 {[%clk 0:00:47.7]} 30. Bf3 {[%clk 0:00:47.8]} 30... Re8
{[%clk 0:00:44.4]} 31. e6 {[%clk 0:00:38.4]} 31... fxe6 {[%clk 0:00:42.9]} 32.
Re2 {[%clk 0:00:31.1]} 32... Nd1 {[%clk 0:00:36.5]} 33. Rxe6 {[%clk 0:00:19.6]}
33... Nc3+ {[%clk 0:00:35.3]} 34. Ka1 {[%clk 0:00:19.9]} 34... Rxe6 {[%clk
0:00:28.7]} 35. Nxe6 {[%clk 0:00:20.8]} 35... Kf7 {[%clk 0:00:19.6]} 36. Ng5+
{[%clk 0:00:20.8]} 36... Kf6 {[%clk 0:00:19]} 37. h4 {[%clk 0:00:20.1]} 37...
Ne4 {[%clk 0:00:17]} 38. Bxe4 {[%clk 0:00:19.2]} 38... dxe4 {[%clk 0:00:16.8]}
39. Rxb7 {[%clk 0:00:20.1]} 39... e3 {[%clk 0:00:16.1]} 40. Rf7+ {[%clk
0:00:19.8]} 40... Ke5 {[%clk 0:00:15.1]} 41. Re7+ {[%clk 0:00:20.3]} 41... Kf4
{[%clk 0:00:14.5]} 42. Kb1 {[%clk 0:00:19.5]} 42... Kxg4 {[%clk 0:00:13.9]} 43.
Rxe3 {[%clk 0:00:19.1]} 43... Kxh4 {[%clk 0:00:13.7]} 44. Ne6 {[%clk 0:00:18.7]}
44... g5 {[%clk 0:00:13.2]} 45. Nxg7 {[%clk 0:00:18.7]} 45... g4 {[%clk
0:00:12.5]} 46. Nf5+ {[%clk 0:00:18.9]} 46... Kg5 {[%clk 0:00:12.4]} 47. Ng3
{[%clk 0:00:18.4]} 47... Kf4 {[%clk 0:00:12.1]} 48. Rd3 {[%clk 0:00:17.3]} 48...
b4 {[%clk 0:00:11.6]} 49. Kb2 {[%clk 0:00:17.3]} 49... Rc3 {[%clk 0:00:08.4]}
50. Ne2+ {[%clk 0:00:16.7]} 50... Ke4 {[%clk 0:00:06.9]} 51. Nxc3+ {[%clk
0:00:17.6]} 51... bxc3+ {[%clk 0:00:06.8]} 52. Rxc3 {[%clk 0:00:18.5]} 1-0

[Event "*** SCC Grand Prix: Titled Tuesday Blitz"]
[Site "Chess.com"]
[Date "2020.09.08"]
[Round "4"]
[White "Ginger_GM"]
[Black "mbojan"]
[Result "1/2-1/2"]
[WhiteElo "2610"]
[BlackElo "2799"]
[TimeControl "180+1"]
[EndTime "10:40:34 PDT"]
[Termination "Game drawn - insufficient material"]

1. d4 {[%clk 0:03:00.9]} 1... Nf6 {[%clk 0:02:58.6]} 2. c4 {[%clk 0:02:59.5]}
2... c5 {[%clk 0:02:58.3]} 3. d5 {[%clk 0:02:56.4]} 3... b5 {[%clk 0:02:58.3]}
4. cxb5 {[%clk 0:02:55.1]} 4... a6 {[%clk 0:02:58]} 5. Nc3 {[%clk 0:02:55.3]}
5... axb5 {[%clk 0:02:52.6]} 6. e4 {[%clk 0:02:55]} 6... b4 {[%clk 0:02:52.6]}
7. Nb5 {[%clk 0:02:54.6]} 7... d6 {[%clk 0:02:50.7]} 8. Bc4 {[%clk 0:02:53.4]}
8... Nbd7 {[%clk 0:02:34.9]} 9. Nf3 {[%clk 0:02:45.9]} 9... Nb6 {[%clk
0:02:17.7]} 10. b3 {[%clk 0:02:35.4]} 10... Nxc4 {[%clk 0:01:33.6]} 11. bxc4
{[%clk 0:02:34.7]} 11... e5 {[%clk 0:01:25]} 12. dxe6 {[%clk 0:02:03.3]} 12...
Bxe6 {[%clk 0:01:22.7]} 13. Qd3 {[%clk 0:01:22.8]} 13... Be7 {[%clk 0:01:20.7]}
14. O-O {[%clk 0:01:18.6]} 14... O-O {[%clk 0:01:16.7]} 15. Bf4 {[%clk 0:01:18]}
15... Ra6 {[%clk 0:01:06.7]} 16. Rfd1 {[%clk 0:01:07]} 16... Ne8 {[%clk
0:00:49.2]} 17. e5 {[%clk 0:01:05.1]} 17... dxe5 {[%clk 0:00:45.5]} 18. Qe2
{[%clk 0:00:34.9]} 18... exf4 {[%clk 0:00:28.1]} 19. Rxd8 {[%clk 0:00:33.9]}
19... Bxd8 {[%clk 0:00:29]} 20. Rd1 {[%clk 0:00:26.5]} 20... Bf6 {[%clk
0:00:28.9]} 21. Qe4 {[%clk 0:00:20.7]} 21... Rxa2 {[%clk 0:00:21.5]} 22. Qxf4
{[%clk 0:00:21]} 22... Rc2 {[%clk 0:00:19.1]} 23. Ne5 {[%clk 0:00:19.1]} 23...
Bxe5 {[%clk 0:00:17.9]} 24. Qxe5 {[%clk 0:00:19.6]} 24... Rxc4 {[%clk
0:00:18.1]} 25. h3 {[%clk 0:00:14.6]} 25... Nf6 {[%clk 0:00:18]} 26. Nc7 {[%clk
0:00:13.7]} 26... Bc8 {[%clk 0:00:13.6]} 27. Qe7 {[%clk 0:00:13.3]} 27... Rd4
{[%clk 0:00:10]} 28. Rxd4 {[%clk 0:00:12.7]} 28... cxd4 {[%clk 0:00:10.9]} 29.
Qxb4 {[%clk 0:00:13.2]} 29... d3 {[%clk 0:00:10.5]} 30. Qd4 {[%clk 0:00:13.3]}
30... Bf5 {[%clk 0:00:10.6]} 31. g4 {[%clk 0:00:11.8]} 31... Bg6 {[%clk
0:00:10.9]} 32. f4 {[%clk 0:00:11.4]} 32... h5 {[%clk 0:00:06.6]} 33. f5 {[%clk
0:00:11.8]} 33... Bh7 {[%clk 0:00:06.5]} 34. Nd5 {[%clk 0:00:08.6]} 34... Nxd5
{[%clk 0:00:06.4]} 35. Qxd5 {[%clk 0:00:09.2]} 35... hxg4 {[%clk 0:00:07]} 36.
hxg4 {[%clk 0:00:10]} 36... Kh8 {[%clk 0:00:04.4]} 37. Qxd3 {[%clk 0:00:10]}
37... f6 {[%clk 0:00:04.9]} 38. Kf2 {[%clk 0:00:10.2]} 38... Re8 {[%clk
0:00:05.1]} 39. Kf3 {[%clk 0:00:09.3]} 39... Bg8 {[%clk 0:00:04.6]} 40. Qd7
{[%clk 0:00:09]} 40... Rf8 {[%clk 0:00:04.3]} 41. Kg3 {[%clk 0:00:09]} 41... Bf7
{[%clk 0:00:04.1]} 42. Qe7 {[%clk 0:00:08.5]} 42... Kg8 {[%clk 0:00:04.6]} 43.
Kh4 {[%clk 0:00:08.2]} 43... Be8 {[%clk 0:00:05.2]} 44. g5 {[%clk 0:00:07]}
44... fxg5+ {[%clk 0:00:06.1]} 45. Kxg5 {[%clk 0:00:07]} 45... Bf7 {[%clk
0:00:06.5]} 46. Qd6 {[%clk 0:00:06.8]} 46... Be8 {[%clk 0:00:06.7]} 47. Qe5
{[%clk 0:00:07]} 47... Bd7 {[%clk 0:00:06.2]} 48. Kg6 {[%clk 0:00:03.7]} 48...
Rf6+ {[%clk 0:00:05.9]} 49. Qxf6 {[%clk 0:00:03.5]} 49... gxf6 {[%clk
0:00:06.8]} 50. Kxf6 {[%clk 0:00:03.7]} 50... Bxf5 {[%clk 0:00:07.4]} 1/2-1/2